fUST/lending_fUST_20241105
["ID","MTS","AMOUNT","RATE_DAILY","PERIOD"]
[341350565,1730819240342,-529.43280128,0.00030136,3]
[341350566,1730819240363,-500.0,0.00030136,3]
[341350567,1730819240384,-510.96306136,0.00030136,3]
[341350568,1730819240407,-502.21401065,0.00030136,3]
[341350569,1730819240429,-500.0,0.00030136,3]
[341350570,1730819240457,-503.08374973,0.00030136,3]
[341350571,1730819240480,-500.0,0.00030136,3]
[341350572,1730819240503,-500.0,0.00030136,3]
[341350573,1730819240525,-504.2608333,0.00030136,3]
[341350574,1730819240548,-643.20366259,0.00030136,3]
[341350575,1730819240572,-503.16757482,0.00030136,3]
[341350576,1730819240593,-574.09492706,0.00030136,3]
[341350577,1730819240615,-500.0,0.00030136,3]
[341350578,1730819240637,-510.47489483,0.00030136,3]
[341350579,1730819240658,-505.71914092,0.00030136,3]
[341350580,1730819240680,-500.0,0.00030136,3]
[341350581,1730819240701,-501.46585132,0.00030136,3]
[341350582,1730819240722,-505.6336026,0.00030136,3]
[341350583,1730819240745,-605.54350471,0.00030136,3]
[341350584,1730819240768,-508.87926576,0.00030136,3]
[341350585,1730819240791,-610.29728907,0.00030136,3]
[341350586,1730819240812,-505.72297682,0.00030136,3]
[341350587,1730819240836,-500.0,0.00030136,3]
[341350588,1730819240860,-500.0,0.00030136,3]
[341350589,1730819240882,-500.0,0.00030136,3]
[341350590,1730819240905,-503.6900889,0.00030136,3]
[341350591,1730819240927,-501.54881811,0.00030136,3]
[341350592,1730819240950,-503.05059711,0.00030136,3]
[341350593,1730819240973,-502.83113074,0.00030136,3]
[341350594,1730819240993,-506.24172695,0.00030136,3]
[341350595,1730819241015,-505.52656673,0.00030136,3]
[341350596,1730819241036,-511.5256387,0.00030136,3]
[341350597,1730819241057,-510.03052161,0.00030136,3]
[341350598,1730819241078,-501.70877372,0.00030136,3]
[341350599,1730819241099,-505.55970415,0.00030136,3]
[341350600,1730819241123,-500.0,0.00030136,3]
[341350601,1730819241149,-517.93899879,0.00030136,3]
[341350602,1730819241170,-500.0,0.00030136,3]
[341350603,1730819241191,-504.30354747,0.00030136,3]
[341350604,1730819241216,-513.91845747,0.00030136,3]
[341350605,1730819241237,-500.0,0.00030136,3]
[341350606,1730819241257,-500.0,0.00030136,3]
[341350607,1730819241278,-502.21779567,0.00030136,3]
[341350608,1730819241300,-503.39904094,0.00030136,3]
[341350609,1730819241321,-505.110697,0.00030136,3]
[341350610,1730819241342,-500.0,0.00030136,3]
[341350611,1730819241364,-500.0,0.00030136,3]
[341350612,1730819241385,-500.0,0.00030136,3]
[341350613,1730819241415,-505.53751388,0.00030136,3]
[341350614,1730819241437,-505.22135022,0.00030136,3]
[341350615,1730819241459,-500.62333881,0.00030136,3]
[341350616,1730819241480,-500.0,0.00030136,3]
[341350617,1730819241501,-500.0,0.00030136,3]
[341350618,1730819241522,-502.37229043,0.00030136,3]
[341350619,1730819241544,-500.0,0.00030136,3]
[341350620,1730819241565,-501.3345569,0.00030136,3]
[341350621,1730819241586,-500.0,0.00030136,3]
[341350622,1730819241608,-503.29433272,0.00030136,3]
[341350623,1730819241629,-503.85401501,0.00030136,3]
[341350624,1730819241654,-500.0,0.00030136,3]
[341350625,1730819241675,-500.0,0.00030136,3]
[341350626,1730819241696,-502.98078838,0.00030136,3]
[341350627,1730819241716,-500.0,0.00030136,3]
[341350628,1730819241738,-500.0,0.00030136,3]
[341350629,1730819241765,-316.57178388,0.00030136,3]
[341350630,1730819241788,-506.15158132,0.00030136,3]
[341350631,1730819241809,-502.44592612,0.00030136,3]
[341350632,1730819241831,-502.23719391,0.00030136,3]
[341350633,1730819241853,-500.0,0.00030136,3]
[341350634,1730819241875,-500.0,0.00030136,3]
[341350635,1730819241900,-501.88591006,0.00030136,3]
[341350636,1730819241921,-502.82658019,0.00030136,3]
[341350637,1730819241943,-502.33554829,0.00030136,3]
[341350638,1730819241964,-500.0,0.00030136,3]
[341350639,1730819241985,-500.0,0.00030136,3]
[341350640,1730819242007,-500.0,0.00030136,3]
[341350641,1730819242027,-500.54586036,0.00030136,3]
[341350642,1730819242050,-508.75666676,0.00030136,3]
[341350643,1730819242073,-574.79198545,0.00030136,3]
[341350644,1730819242095,-509.62622642,0.00030136,3]
[341350645,1730819242116,-503.85926994,0.00030136,3]
[341350646,1730819242137,-500.0,0.00030136,3]
[341350647,1730819242163,-503.66831615,0.00030136,3]
[341350648,1730819242183,-502.86083641,0.00030136,3]
[341350649,1730819242205,-507.32381008,0.00030136,3]
[341350650,1730819242226,-509.82981597,0.00030136,3]
[341350651,1730819242247,-503.68890541,0.00030136,3]
[341350652,1730819242268,-501.52175216,0.00030136,3]
[341350653,1730819242289,-507.80005217,0.00030136,3]
[341350654,1730819242309,-505.73837133,0.00030136,3]
[341350655,1730819242331,-500.0,0.00030136,3]
[341350656,1730819242448,-500.0,0.00030136,3]
[341350657,1730819242470,-503.10534214,0.00030136,3]
[341350658,1730819242492,-500.78310819,0.00030136,3]
[341350659,1730819242515,-503.63120725,0.00030136,3]
[341350660,1730819242537,-506.84236433,0.00030136,3]
[341350661,1730819242558,-502.78321044,0.00030136,3]
[341350662,1730819242580,-180.209695,0.00030136,3]
[341350663,1730819242600,-506.31029905,0.00030136,3]
[341350664,1730819242622,-501.8074694,0.00030136,3]
[341350665,1730819242646,-211.16550153,0.00030136,3]
[341350666,1730819242667,-500.0,0.00030136,3]
[341350667,1730819242689,-503.07145176,0.00030136,3]
[341350668,1730819242709,-203.9549025,0.00030136,3]
[341350669,1730819242730,-502.06194082,0.00030136,3]
[341350670,1730819242752,-505.94690768,0.00030136,3]
[341350671,1730819242773,-517.5779366,0.00030136,3]
[341350672,1730819242796,-500.0,0.00030136,3]
[341350673,1730819242817,-300.03972967,0.00030136,3]
[341350674,1730819242840,-503.4381573,0.00030136,3]
[341350675,1730819242861,-157.26718132,0.00030136,3]
[341350676,1730819242881,-500.0,0.00030136,3]
[341350677,1730819242905,-505.41564549,0.00030136,3]
[341350678,1730819242927,-500.0,0.00030136,3]
[341350679,1730819242948,-418.08010817,0.00030136,3]
[341350680,1730819242970,-500.0,0.00030136,3]
[341350681,1730819242991,-505.6131961,0.00030136,3]
[341350682,1730819243012,-508.39582966,0.00030136,3]
[341350683,1730819243033,-500.0,0.00030136,3]
[341350684,1730819243054,-508.595833,0.00030136,3]
[341350685,1730819243075,-509.71927564,0.00030136,3]
[341350686,1730819243097,-500.0,0.00030136,3]
[341350687,1730819243118,-500.0,0.00030136,3]
[341350688,1730819243139,-500.0,0.00030136,3]
[341350689,1730819243164,-513.06784206,0.00030136,3]
[341350690,1730819243185,-500.0,0.00030136,3]
[341350691,1730819243207,-500.0,0.00030136,3]
[341350692,1730819243228,-512.72126915,0.00030136,3]
[341350693,1730819243249,-500.0,0.00030136,3]
[341350694,1730819243269,-500.0,0.00030136,3]
[341350695,1730819243291,-500.0,0.00030136,3]
[341350696,1730819243312,-500.0,0.00030136,3]
[341350697,1730819243335,-500.0,0.00030136,3]
[341350698,1730819243356,-500.0,0.00030136,3]
[341350699,1730819243377,-500.0,0.00030136,3]
[341350700,1730819243403,-501.92568554,0.00030136,3]
[341350701,1730819243423,-556.46551516,0.00030136,3]
[341350702,1730819243444,-622.30540552,0.00030136,3]
[341350703,1730819243467,-500.0,0.00030136,3]
[341350704,1730819243489,-500.0,0.00030136,3]
[341350705,1730819243512,-500.0,0.00030136,3]
[341350706,1730819243533,-500.0,0.00030136,3]
[341350707,1730819243554,-500.0,0.00030136,3]
[341350708,1730819243576,-500.0,0.00030136,3]
[341350709,1730819243599,-414.45178706,0.00030136,3]
[341350710,1730819243620,-500.0,0.00030136,3]
[341350711,1730819243643,-500.0,0.00030136,3]
[341350712,1730819243666,-544.35872785,0.00030136,3]
[341350713,1730819243689,-500.0,0.00030136,3]
[341350714,1730819243710,-502.12395022,0.00030136,3]
[341350715,1730819243732,-500.0,0.00030136,3]
[341350716,1730819243757,-500.0,0.00030136,3]
[341350717,1730819243778,-500.0,0.00030136,3]
[341350718,1730819243803,-500.0,0.00030136,3]
[341350719,1730819243828,-524.70832119,0.00030136,3]
[341350720,1730819243851,-500.0,0.00030136,3]
[341350721,1730819243873,-512.63672678,0.00030136,3]
[341350722,1730819243897,-500.0,0.00030136,3]
[341350723,1730819243919,-524.07862514,0.00030136,3]
[341350724,1730819243941,-402.96514524,0.00030136,3]
[341350725,1730819243963,-506.1968508,0.00030136,3]
[341350726,1730819243983,-510.47911448,0.00030136,3]
[341350727,1730819244004,-500.0,0.00030136,3]
[341350728,1730819244025,-500.0,0.00030136,3]
[341350729,1730819244045,-500.0,0.00030136,3]
[341350730,1730819244065,-509.64555733,0.00030136,3]
[341350731,1730819244086,-509.54720953,0.00030136,3]
[341350732,1730819244109,-503.36416762,0.00030136,3]
[341350733,1730819244130,-501.56857057,0.00030136,3]
[341350734,1730819244156,-292.92979674,0.00030136,3]
[341350735,1730819244177,-500.0,0.00030136,3]
[341350736,1730819244200,-500.0,0.00030136,3]
[341350737,1730819244221,-502.53993674,0.00030136,3]
[341350738,1730819244242,-515.28482306,0.00030136,3]
[341350739,1730819244264,-311.1607662,0.00030136,3]
[341350740,1730819244285,-516.23045534,0.00030136,3]
[341350741,1730819244306,-500.0,0.00030136,3]
[341350742,1730819244328,-500.0,0.00030136,3]
[341350743,1730819244350,-500.0,0.00030136,3]
[341350744,1730819244372,-500.0,0.00030136,3]
[341350745,1730819244398,-500.0,0.00030136,3]
[341350746,1730819244418,-500.0,0.00030136,3]
[341350747,1730819244441,-500.0,0.00030136,3]
[341350748,1730819244463,-503.86920275,0.00030136,3]
[341350749,1730819244486,-500.0,0.00030136,3]
[341350750,1730819244508,-500.0,0.00030136,3]
[341350751,1730819244530,-500.0,0.00030136,3]
[341350752,1730819244552,-500.0,0.00030136,3]
[341350753,1730819244574,-546.4964895,0.00030136,3]
[341350754,1730819244596,-500.0,0.00030136,3]
[341350755,1730819244619,-500.0,0.00030136,3]
[341350756,1730819244640,-500.0,0.00030136,3]
[341350757,1730819244672,-512.11714021,0.00030136,3]
[341350758,1730819244694,-500.0,0.00030136,3]
[341350759,1730819244716,-456.1453166,0.00030136,3]
[341350760,1730819244738,-500.0,0.00030136,3]
[341350761,1730819244764,-500.0,0.00030136,3]
[341350762,1730819244859,-500.0,0.00030136,3]
[341350763,1730819244886,-500.0,0.00030136,3]
[341350764,1730819244910,-500.0,0.00030136,3]
[341350765,1730819244931,-500.0,0.00030136,3]
[341350766,1730819244953,-509.23428565,0.00030136,3]
[341350767,1730819244975,-500.0,0.00030136,3]
[341350768,1730819244998,-500.0,0.00030136,3]
[341350769,1730819245022,-518.66993308,0.00030136,3]
[341350770,1730819245044,-507.73282921,0.00030136,3]
[341350771,1730819245069,-500.0,0.00030136,2]
[341350772,1730819245091,-500.0,0.00030136,3]
[341350773,1730819245113,-514.86706025,0.00030136,3]
[341350774,1730819245134,-404.54251095,0.00030136,3]
[341350775,1730819245159,-518.76171154,0.00030136,3]
[341350776,1730819245180,-512.5,0.00030136,3]
[341350777,1730819245202,-505.54215732,0.00030136,3]
[341350778,1730819245226,-500.0,0.00030136,3]
[341350779,1730819245249,-504.75988919,0.00030136,3]
[341350780,1730819245272,-504.78260446,0.00030136,3]
[341350781,1730819245294,-500.0,0.00030136,3]
[341350782,1730819245316,-505.15484375,0.00030136,3]
[341350783,1730819245340,-500.0,0.00030136,3]
[341350784,1730819245362,-500.0,0.00030136,3]
[341350785,1730819245383,-507.20729714,0.00030136,3]
[341350786,1730819245408,-500.0,0.00030136,3]
[341350787,1730819245433,-500.0,0.00030136,3]
[341350788,1730819245456,-500.0,0.00030136,3]
[341350789,1730819245480,-504.38168687,0.00030136,3]
[341350790,1730819245504,-500.0,0.00030136,3]
[341350791,1730819245528,-506.74121651,0.00030136,3]
[341350792,1730819245553,-515.52320671,0.00030136,3]
[341350793,1730819245577,-500.0,0.00030136,3]
[341350794,1730819245599,-500.0,0.00030136,3]
[341350795,1730819245622,-500.0,0.00030136,3]
[341350796,1730819245646,-528.02626873,0.00030136,3]
[341350797,1730819245670,-500.0,0.00030136,3]
[341350798,1730819245692,-510.68980071,0.00030136,3]
[341350799,1730819245714,-504.27196743,0.00030136,3]
[341350800,1730819245736,-500.0,0.00030136,3]
[341350801,1730819245761,-500.0,0.00030136,3]
[341350802,1730819245783,-510.65151418,0.00030136,3]
[341350803,1730819245807,-400.04976454,0.00030136,3]
[341350804,1730819245829,-501.50017676,0.00030136,3]
[341350805,1730819245854,-500.0,0.00030136,3]
[341350806,1730819245875,-502.37978132,0.00030136,3]
[341350807,1730819245898,-473.9091764,0.00030136,3]
[341350808,1730819245921,-389.84250407,0.00030136,3]
[341350809,1730819245942,-500.0,0.00030136,3]
[341350810,1730819245964,-500.0,0.00030136,3]
[341350811,1730819245985,-500.0,0.00030136,3]
[341350812,1730819246006,-508.14470864,0.00030136,3]
[341350813,1730819246028,-500.0,0.00030136,3]
[341350814,1730819246050,-508.08642587,0.00030136,3]
[341350815,1730819246071,-500.0,0.00030136,3]
[341350816,1730819246093,-500.0,0.00030136,3]
[341350817,1730819246115,-519.08224234,0.0003041,3]
[341350818,1730819246137,-397.786401,0.0003041,3]
[341350819,1730819246162,-500.0,0.0003041,3]
[341350820,1730819246183,-513.66752347,0.0003041,3]
[341350821,1730819246206,-500.0,0.0003041,3]
[341350822,1730819246230,-581.51,0.0003041,3]
[341350823,1730819246252,-1000.0,0.00030484,5]
[341350824,1730819246273,-500.0,0.00030557,5]
[341350825,1730819246294,-500.0,0.00030557,5]
[341350826,1730819246316,-561.99587361,0.00030684,3]
[341350827,1730819246354,-500.0,0.00030684,3]
[341350828,1730819246377,-160.5309498,0.00030744,2]
[341350829,1730819246405,-500.0,0.00030958,3]
[341350830,1730819246429,-500.0,0.00031232,3]
[341350831,1730819246452,-500.0,0.00031506,3]
[341350832,1730819246476,-500.0,0.0003178,3]
[341350833,1730819246499,-500.0,0.00032054,3]
[341350834,1730819246522,-345.86998519,0.00032328,3]
[341350835,1730819246544,-917.2,0.000326,2]
[341350836,1730819246566,-500.0,0.00032876,7]
[341350837,1730819246589,-192.588683,0.00032877,120]
[341350838,1730819246611,-165.0,0.00033,2]
[341350839,1730819246635,-190.857155,0.00033396,2]
[341350840,1730819246660,-226.48,0.00033596,30]
[341350841,1730819246684,-1325.98,0.00033972,120]
[341350842,1730819246706,-498.0,0.00034305,3]
[341350843,1730819246728,-165.0,0.00034521,2]
[341350844,1730819246754,-1325.98,0.00034931,120]
[341350845,1730819246777,-1325.98,0.0003589,120]
[341350846,1730819246800,-165.0,0.00036247,2]
[341350847,1730819246825,-1325.98,0.00036849,120]
[341350848,1730819246849,-158.40841799,0.00037715,23]
[341350849,1730819246873,-1325.98,0.00037808,120]
[341350850,1730819246897,-953.01,0.0003819,10]
[341350851,1730819246921,-794.18,0.0003819,10]
[341350852,1730819246945,-661.82,0.0003819,10]
[341350853,1730819246969,-10280.81430874,0.000382,109]
[341350856,1730819352168,-520.83333333,0.00022507,2]
[341350861,1730819397871,520.83333333,0.00021733,2]
[341350888,1730819432035,-465.15162347,0.00031834,2]
[341350890,1730819432045,-165.0,0.00033,2]
[341350892,1730819432055,-500.0,0.00033323,7]
[341350894,1730819432065,-14562.91646097,0.00033324,2]
[341350898,1730819432094,-417.22500003,0.00033323,7]
[341350900,1730819432107,-82.77499997,0.00033323,7]
[341350902,1730819432117,-6156.19139032,0.00033324,2]
[341350904,1730819432131,-2156.35373146,0.00033324,2]
[341350906,1730819432143,-2024.53841725,0.00033324,2]
[341350908,1730819432152,-825.48,0.000336,2]
[341350910,1730819432162,-1049.73,0.00033972,120]
[341350912,1730819432172,-293.17158275,0.00034931,120]
[341350914,1730819432187,-756.55841725,0.00034931,120]
[341350916,1730819432196,-1049.73,0.0003589,120]
[341350918,1730819432206,-1049.73,0.00036849,120]
[341350920,1730819432216,-1049.73,0.00037808,120]
[341350922,1730819432226,-13101.96567017,0.000382,109]
[341350924,1730819432236,-13101.96567017,0.000382,109]
[341350925,1730819432246,-500.0,0.00038356,2]
[341350928,1730819432263,-1134.80999332,0.00038515,2]
[341350929,1730819432273,-1049.73,0.00038767,120]
[341350931,1730819432283,-12252.64801474,0.00039402,2]
[341350933,1730819432292,-500.0,0.00039726,2]
[341350935,1730819432303,-1049.73,0.00039726,120]
[341350937,1730819432312,-1033.15515345,0.00039805,2]
[341350939,1730819432322,-190.857155,0.0003987,2]
[341350941,1730819432331,-433.44,0.0004,2]
[341350943,1730819432341,-507.12821752,0.0004,5]
[341350945,1730819432350,-1049.73,0.00040684,120]
[341350947,1730819432360,-2476.44,0.000408,7]
[341350949,1730819432373,-503.15602645,0.00041095,3]
[341350951,1730819432387,-500.0,0.00041095,2]
[341350953,1730819432396,-1049.73,0.00041643,120]
[341350955,1730819432406,-196.85854318,0.00041899,2]
[341350957,1730819432415,-13101.96567017,0.000419,120]
[341350959,1730819432425,-1033.15515345,0.000419,28]
[341350961,1730819432434,-500.0,0.000419,2]
[341350962,1730819432444,-500.0,0.00041973,10]
[341350963,1730819432453,-500.0,0.00041973,10]
[341350964,1730819432463,-500.0,0.00041973,10]
[341350965,1730819432472,-151.0,0.00041999,7]
[341350966,1730819432481,-151.0,0.00041999,7]
[341350967,1730819432491,-3171.92941018,0.00042,30]
[341351025,1730819438333,-500.0,0.00033323,7]
[341351027,1730819438343,-500.0,0.00033323,7]
[341351028,1730819438352,-500.0,0.00033323,7]
[341351030,1730819438361,-500.0,0.00033323,7]
[341351032,1730819438372,-500.0,0.00033323,7]
[341351034,1730819438385,-152.21374637,0.00033323,7]
[341351036,1730819438395,-500.0,0.00041096,31]
[341351037,1730819438405,-500.0,0.00041096,31]
[341351039,1730819438414,-500.0,0.00041096,31]
[341351041,1730819438424,-500.0,0.00041096,31]
[341351043,1730819438434,-405.80152737,0.00041999,31]
[341351045,1730819438443,-431.70655622,0.00041999,31]
[341351047,1730819438452,-46470.85435109,0.00042,30]
[341351050,1730819438465,-2548.99933511,0.00042,30]
[341351120,1730819439177,-3356.41199383,0.00042,30]
[341351126,1730819439228,-209356.74102356,0.00042,30]
[341351183,1730819440160,-551.51,0.0004199,10]
[341351185,1730819440171,-13528.8660936,0.00042,30]
[341351486,1730819443217,-75554.11205285,0.00042,30]
[341351494,1730819443301,-146095.3898,0.00042,30]
[341351802,1730819446278,-160.0,0.00033,2]
[341351804,1730819446288,-500.0,0.00041096,31]
[341351806,1730819446298,-342786.67084727,0.00042,30]
[341351823,1730819446459,-2025.636407,0.00042,30]
[341351826,1730819446472,-5691.94032257,0.00042,30]
[341352085,1730819449079,-24265.85782941,0.00042,30]
[341352088,1730819449091,-11553.224254,0.00042,30]
[341352090,1730819449103,-301.5007442,0.00042,30]
[341352335,1730819461401,520.83333333,0.00020959,2]
[341352337,1730819523856,330.22791617,0.00020185,2]
[341352338,1730819523879,190.60541716,0.00020185,2]
[341352343,1730820289995,159.847787,0.00013973,2]
[341352347,1730820445136,-520.83333333,0.00020185,2]
[341352348,1730820445159,-159.847787,0.00020807,2]
[341352349,1730820445181,-150.11620761,0.00023,5]
[341352350,1730820445204,-100.38572137,0.00025,2]
[341352351,1730820452099,-202.40235121,0.00025,2]
[341352352,1730820452123,-159.847787,0.00027641,2]
[341352353,1730820452146,-503.31549452,0.00030136,3]
[341352354,1730820452168,-503.08796966,0.00030136,3]
[341352355,1730820452189,-500.0,0.00030136,3]
[341352356,1730820452211,-512.02193098,0.00030136,3]
[341352357,1730820452232,-504.38272288,0.00030136,3]
[341352358,1730820452252,-500.0,0.00030136,3]
[341352359,1730820452274,-519.28178784,0.00030136,3]
[341352360,1730820452294,-508.74074671,0.00030136,3]
[341352361,1730820452316,-511.14364125,0.00030136,3]
[341352362,1730820452337,-505.41906881,0.00030136,3]
[341352363,1730820452358,-505.62508965,0.00030136,3]
[341352364,1730820452380,-530.13362974,0.00030136,3]
[341352365,1730820452402,-503.50043094,0.00030136,3]
[341352366,1730820452426,-172.28096,0.00030534,2]
[341352367,1730820452448,-500.0,0.00031956,2]
[341352368,1730820452469,-439.14467,0.00031956,2]
[341352369,1730820452497,-500.0,0.00031956,2]
[341352370,1730820452527,-24900.0,0.00031957,2]
[341352371,1730820452549,-645.72197095,0.0003218,2]
[341352372,1730820452571,-3000.0,0.0003228,2]
[341352373,1730820452593,-500.0,0.00032876,7]
[341352374,1730820452615,-500.0,0.00032876,7]
[341352375,1730820452638,-500.0,0.00032876,7]
[341352376,1730820452660,-192.588683,0.00032877,120]
[341352377,1730820452683,-645.7219709,0.00033569,2]
[341352378,1730820452705,-525.2,0.000336,2]
[341352379,1730820452728,-159.847787,0.00034475,2]
[341352380,1730820452752,-645.7219709,0.00034957,2]
[341352381,1730820452776,-170.32803609,0.0003526,41]
[341352382,1730820452799,-645.7219709,0.00036346,2]
[341352383,1730820452821,-645.7219709,0.00037734,2]
[341352384,1730820452843,-3184.62340632,0.000382,109]
[341352385,1730820452865,-3184.62340632,0.000382,109]
[341352386,1730820452888,-3184.62340632,0.000382,109]
[341352387,1730820452910,-166.7048841,0.00038201,7]
[341352388,1730820452932,-500.0,0.00038356,2]
[341352389,1730820452954,-3184.62340632,0.00038934,114]
[341352390,1730820452977,-177.83918918,0.00039023,2]
[341352391,1730820452999,-645.7219709,0.00039123,2]
[341352392,1730820453024,-500.0,0.00039726,2]
[341352393,1730820453045,-1413.000001,0.0004,7]
[341352394,1730820453068,-390.1,0.0004,2]
[341352395,1730820453090,-645.7219709,0.00040511,28]
[341352396,1730820453112,-170.25,0.00041,120]
[341352397,1730820453134,-500.0,0.00041073,5]
[341352398,1730820453156,-500.0,0.00041073,5]
[341352399,1730820453179,-500.0,0.00041073,5]
[341352400,1730820453202,-500.0,0.00041073,5]
[341352401,1730820453223,-391.37407504,0.00041073,5]
[341352402,1730820453248,-560.79,0.00041085,10]
[341352403,1730820453276,-999.0,0.00041094,120]
[341352404,1730820453299,-500.0,0.00041095,3]
[341352405,1730820453322,-500.0,0.00041095,2]
[341352406,1730820453344,-500.0,0.00041095,3]
[341352407,1730820453366,-500.0,0.00041095,3]
[341352408,1730820453388,-584.28898088,0.00041095,3]
[341352409,1730820453411,-260.49711731,0.00041095,3]
[341352410,1730820453435,-508.30224949,0.00041095,3]
[341352411,1730820453456,-509.7508883,0.00041095,3]
[341352412,1730820453480,-200.0,0.00041095,14]
[341352413,1730820453506,-500.0,0.00041095,14]
[341352414,1730820453530,-644.57249687,0.00041095,14]
[341352415,1730820453552,-508.3568695,0.00041095,14]
[341352416,1730820453575,-506.29511336,0.00041095,14]
[341352417,1730820453598,-500.0,0.00041095,14]
[341352418,1730820453621,-504.06978989,0.00041095,14]
[341352419,1730820453644,-500.0,0.00041095,14]
[341352420,1730820453668,-368.41315284,0.00041095,14]
[341352421,1730820453693,-202.2433957,0.00041095,14]
[341352422,1730820453718,-516.45595074,0.00041095,14]
[341352423,1730820453742,-500.0,0.00041095,14]
[341352424,1730820453766,-500.0,0.00041095,14]
[341352425,1730820453790,-440.4,0.00041095,14]
[341352426,1730820453813,-500.0,0.00041095,14]
[341352427,1730820453840,-500.0,0.00041095,14]
[341352428,1730820453863,-510.02401457,0.00041095,14]
[341352429,1730820453887,-500.0,0.00041095,14]
[341352430,1730820453912,-500.0,0.00041095,14]
[341352431,1730820453935,-500.0,0.00041095,14]
[341352432,1730820453962,-506.38198666,0.00041095,14]
[341352433,1730820453985,-512.30588927,0.00041095,14]
[341352434,1730820454012,-500.0,0.00041095,14]
[341352435,1730820454041,-509.78723264,0.00041095,14]
[341352436,1730820454068,-500.0,0.00041095,14]
[341352437,1730820454091,-500.0,0.00041095,14]
[341352438,1730820454113,-500.0,0.00041095,14]
[341352439,1730820454135,-500.0,0.00041095,14]
[341352440,1730820454158,-500.0,0.00041095,14]
[341352441,1730820454181,-318.02430715,0.00041095,14]
[341352442,1730820454203,-500.0,0.00041095,14]
[341352443,1730820454309,-507.57757978,0.00041095,14]
[341352444,1730820454333,-513.25380593,0.00041095,14]
[341352445,1730820454357,-500.0,0.00041095,14]
[341352446,1730820454381,-500.0,0.00041095,14]
[341352447,1730820454403,-500.0,0.00041095,14]
[341352448,1730820454426,-500.0,0.00041095,14]
[341352449,1730820454449,-323.84159283,0.00041095,14]
[341352450,1730820454472,-500.0,0.00041095,14]
[341352451,1730820454499,-500.0,0.00041095,14]
[341352452,1730820454528,-500.0,0.00041095,14]
[341352453,1730820454553,-512.14166848,0.00041095,14]
[341352454,1730820454580,-500.0,0.00041095,14]
[341352455,1730820454603,-500.0,0.00041095,14]
[341352456,1730820454627,-500.0,0.00041095,14]
[341352457,1730820454651,-192.25922578,0.00041095,14]
[341352458,1730820454673,-500.0,0.00041095,14]
[341352459,1730820454697,-500.0,0.00041095,14]
[341352460,1730820454721,-500.0,0.00041095,10]
[341352461,1730820454744,-500.0,0.00041095,14]
[341352462,1730820454771,-500.0,0.00041095,14]
[341352463,1730820454795,-500.0,0.00041095,14]
[341352464,1730820454819,-505.36076072,0.00041095,14]
[341352465,1730820454844,-500.0,0.00041095,14]
[341352466,1730820454867,-509.47724205,0.00041095,14]
[341352467,1730820454890,-502.05354836,0.00041095,14]
[341352468,1730820454913,-502.65482888,0.00041095,14]
[341352469,1730820454935,-506.6619674,0.00041095,14]
[341352470,1730820454958,-500.0,0.00041095,14]
[341352471,1730820454982,-500.0,0.00041095,14]
[341352472,1730820455005,-508.07834921,0.00041095,14]
[341352473,1730820455033,-509.17136924,0.00041095,14]
[341352474,1730820455055,-567.64164903,0.00041095,14]
[341352475,1730820455076,-514.06527506,0.00041095,14]
[341352476,1730820455099,-505.67905592,0.00041095,14]
[341352477,1730820455122,-507.62011918,0.00041095,14]
[341352478,1730820455143,-500.0,0.00041095,14]
[341352479,1730820455166,-506.26049178,0.00041095,14]
[341352480,1730820455187,-500.0,0.00041095,14]